Workbook

Sheet Sheet1
A1: 云南保山电力股份有限公司2025年校园招聘拟录用人员名单
A2: 序号 | B2: 岗位名称 | C2: 姓名 | D2: 性别 | E2: 准考证号
A3: 1 | B3: 信息通信类 | C3: 闫国鑫 | D3: 男 | E3: =VLOOKUP(C3,[1]考生详表!$A$2:$AA$132,3,FALSE) -> 20254205
A4: 2 | B4: 信息通信类 | C4: 吴涛 | D4: 男 | E4: =VLOOKUP(C4,[1]考生详表!$A$2:$AA$132,3,FALSE) -> 20254114
A5: 3 | B5: 信息通信类 | C5: 陈泳龙 | D5: 男 | E5: =VLOOKUP(C5,[1]考生详表!$A$2:$AA$132,3,FALSE) -> 20254223
A6: 4 | B6: 信息通信类 | C6: 张践翼 | D6: 男 | E6: =VLOOKUP(C6,[1]考生详表!$A$2:$AA$132,3,FALSE) -> 20253823
A7: 5 | B7: 信息通信类 | C7: 王舒欣 | D7: 女 | E7: =VLOOKUP(C7,[1]考生详表!$A$2:$AA$132,3,FALSE) -> 20253412
A8: 6 | B8: 信息通信类 | C8: 龙翔宇 | D8: 男 | E8: =VLOOKUP(C8,[1]考生详表!$A$2:$AA$132,3,FALSE) -> 20253316
A9: 7 | B9: 工程类 | C9: 丁陈永骏 | D9: 男 | E9: =VLOOKUP(C9,[1]考生详表!$A$2:$AA$132,3,FALSE) -> 20255610
A10: 8 | B10: 工程类 | C10: 刘宇仁 | D10: 男 | E10: =VLOOKUP(C10,[1]考生详表!$A$2:$AA$132,3,FALSE) -> 20255806
A11: 9 | B11: 工程类 | C11: 李星影 | D11: 女 | E11: =VLOOKUP(C11,[1]考生详表!$A$2:$AA$132,3,FALSE) -> 20255105
A12: 10 | B12: 工程类 | C12: 赵继彩 | D12: 男 | E12: =VLOOKUP(C12,[1]考生详表!$A$2:$AA$132,3,FALSE) -> 20255602
A13: 11 | B13: 工程类 | C13: 余靖 | D13: 女 | E13: =VLOOKUP(C13,[1]考生详表!$A$2:$AA$132,3,FALSE) -> 20255021
A14: 12 | B14: 工程类 | C14: 穆李海 | D14: 男 | E14: =VLOOKUP(C14,[1]考生详表!$A$2:$AA$132,3,FALSE) -> 20256005
A15: 13 | B15: 财会类 | C15: 周晓艳 | D15: 女 | E15: =VLOOKUP(C15,[1]考生详表!$A$2:$AA$132,3,FALSE) -> 20257609
A16: 14 | B16: 财会类 | C16: 李宇彬 | D16: 女 | E16: =VLOOKUP(C16,[1]考生详表!$A$2:$AA$132,3,FALSE) -> 20256903
A17: 15 | B17: 财会类 | C17: 王诚锦 | D17: 男 | E17: =VLOOKUP(C17,[1]考生详表!$A$2:$AA$132,3,FALSE) -> 20257417
A18: 16 | B18: 财会类 | C18: 赵青 | D18: 女 | E18: =VLOOKUP(C18,[1]考生详表!$A$2:$AA$132,3,FALSE) -> 20257309
A19: 17 | B19: 配电网类 | C19: 翟少林 | D19: 男 | E19: =VLOOKUP(C19,[1]考生详表!$A$2:$AA$132,3,FALSE) -> 20251009
A20: 18 | B20: 配电网类 | C20: 杨文鹏 | D20: 男 | E20: =VLOOKUP(C20,[1]考生详表!$A$2:$AA$132,3,FALSE) -> 20251112
A21: 19 | B21: 配电网类 | C21: 杨灏 | D21: 男 | E21: =VLOOKUP(C21,[1]考生详表!$A$2:$AA$132,3,FALSE) -> 20251311
A22: 20 | B22: 配电网类 | C22: 李林睿 | D22: 男 | E22: =VLOOKUP(C22,[1]考生详表!$A$2:$AA$132,3,FALSE) -> 20251024
A23: 21 | B23: 配电网类 | C23: 陈志鹏 | D23: 男 | E23: =VLOOKUP(C23,[1]考生详表!$A$2:$AA$132,3,FALSE) -> 20251010
A24: 22 | B24: 配电网类 | C24: 刘孟函 | D24: 男 | E24: =VLOOKUP(C24,[1]考生详表!$A$2:$AA$132,3,FALSE) -> 20251424
A25: 23 | B25: 配电网类 | C25: 李耕棋 | D25: 男 | E25: =VLOOKUP(C25,[1]考生详表!$A$2:$AA$132,3,FALSE) -> 20250504
A26: 24 | B26: 配电网类 | C26: 槐俊臣 | D26: 男 | E26: =VLOOKUP(C26,[1]考生详表!$A$2:$AA$132,3,FALSE) -> 20250230
A27: 25 | B27: 配电网类 | C27: 郑逸帆 | D27: 男 | E27: =VLOOKUP(C27,[1]考生详表!$A$2:$AA$132,3,FALSE) -> 20251602
A28: 26 | B28: 配电网类 | C28: 高昌华 | D28: 男 | E28: =VLOOKUP(C28,[1]考生详表!$A$2:$AA$132,3,FALSE) -> 20250929
A29: 27 | B29: 配电网类 | C29: 邓福斌 | D29: 男 | E29: =VLOOKUP(C29,[1]考生详表!$A$2:$AA$132,3,FALSE) -> 20251522
A30: 28 | B30: 配电网类 | C30: 欧渝 | D30: 女 | E30: =VLOOKUP(C30,[1]考生详表!$A$2:$AA$132,3,FALSE) -> 20250924
A31: 29 | B31: 配电网类 | C31: 李鑫龙 | D31: 男 | E31: =VLOOKUP(C31,[1]考生详表!$A$2:$AA$132,3,FALSE) -> 20250516
A32: 30 | B32: 配电网类 | C32: 王力恒 | D32: 男 | E32: =VLOOKUP(C32,[1]考生详表!$A$2:$AA$132,3,FALSE) -> 20251824
A33: 31 | B33: 配电网类 | C33: 王永基 | D33: 男 | E33: =VLOOKUP(C33,[1]考生详表!$A$2:$AA$132,3,FALSE) -> 20251414
A34: 32 | B34: 配电网类 | C34: 杨楠 | D34: 女 | E34: =VLOOKUP(C34,[1]考生详表!$A$2:$AA$132,3,FALSE) -> 20251909
A35: 33 | B35: 配电网类 | C35: 舒海星 | D35: 男 | E35: =VLOOKUP(C35,[1]考生详表!$A$2:$AA$132,3,FALSE) -> 20250722
A36: 34 | B36: 配电网类 | C36: 罗全 | D36: 男 | E36: =VLOOKUP(C36,[1]考生详表!$A$2:$AA$132,3,FALSE) -> 20251616
A37: 35 | B37: 配电网类 | C37: 陈易昌 | D37: 男 | E37: =VLOOKUP(C37,[1]考生详表!$A$2:$AA$132,3,FALSE) -> 20250427
A38: 36 | B38: 配电网类 | C38: 邓硕 | D38: 男 | E38: =VLOOKUP(C38,[1]考生详表!$A$2:$AA$132,3,FALSE) -> 20250501
A39: 37 | B39: 配电网类 | C39: 杨子龙 | D39: 男 | E39: =VLOOKUP(C39,[1]考生详表!$A$2:$AA$132,3,FALSE) -> 20250305
A40: 38 | B40: 配电网类 | C40: 文恒彬 | D40: 男 | E40: =VLOOKUP(C40,[1]考生详表!$A$2:$AA$132,3,FALSE) -> 20250505
A41: 39 | B41: 配电网类 | C41: 宋冬 | D41: 男 | E41: =VLOOKUP(C41,[1]考生详表!$A$2:$AA$132,3,FALSE) -> 20250720
A42: 40 | B42: 配电网类 | C42: 赵正梁 | D42: 男 | E42: =VLOOKUP(C42,[1]考生详表!$A$2:$AA$132,3,FALSE) -> 20251329
A43: 41 | B43: 配电网类 | C43: 何思语 | D43: 男 | E43: =VLOOKUP(C43,[1]考生详表!$A$2:$AA$132,3,FALSE) -> 20251307
A44: 42 | B44: 配电网类 | C44: 罗华康 | D44: 男 | E44: =VLOOKUP(C44,[1]考生详表!$A$2:$AA$132,3,FALSE) -> 20250524
A45: 43 | B45: 配电网类 | C45: 王丽 | D45: 女 | E45: =VLOOKUP(C45,[1]考生详表!$A$2:$AA$132,3,FALSE) -> 20251716
A46: 44 | B46: 配电网类 | C46: 金炀 | D46: 男 | E46: =VLOOKUP(C46,[1]考生详表!$A$2:$AA$132,3,FALSE) -> 20251028
A47: 45 | B47: 配电网类 | C47: 李贵傲 | D47: 男 | E47: =VLOOKUP(C47,[1]考生详表!$A$2:$AA$132,3,FALSE) -> 20251126
A48: 46 | B48: 配电网类 | C48: 尚国应 | D48: 男 | E48: =VLOOKUP(C48,[1]考生详表!$A$2:$AA$132,3,FALSE) -> 20251404
A49: 47 | B49: 配电网类 | C49: 刘建波 | D49: 男 | E49: =VLOOKUP(C49,[1]考生详表!$A$2:$AA$132,3,FALSE) -> 20250119
A50: 48 | B50: 配电网类 | C50: 伯年旺 | D50: 男 | E50: =VLOOKUP(C50,[1]考生详表!$A$2:$AA$132,3,FALSE) -> 20250206
A51: 49 | B51: 配电网类 | C51: 陈宗光 | D51: 男 | E51: =VLOOKUP(C51,[1]考生详表!$A$2:$AA$132,3,FALSE) -> 20250324
A52: 50 | B52: 配电网类 | C52: 杞潮琨 | D52: 男 | E52: =VLOOKUP(C52,[1]考生详表!$A$2:$AA$132,3,FALSE) -> 20251018
A53: 51 | B53: 配电网类 | C53: 史瑞 | D53: 男 | E53: =VLOOKUP(C53,[1]考生详表!$A$2:$AA$132,3,FALSE) -> 20251817
A54: 52 | B54: 配电网类 | C54: 王双维 | D54: 男 | E54: =VLOOKUP(C54,[1]考生详表!$A$2:$AA$132,3,FALSE) -> 20251115
A55: 53 | B55: 配电网类 | C55: 李自立 | D55: 男 | E55: =VLOOKUP(C55,[1]考生详表!$A$2:$AA$132,3,FALSE) -> 20251014
A56: 54 | B56: 配电网类 | C56: 杨潇 | D56: 男 | E56: =VLOOKUP(C56,[1]考生详表!$A$2:$AA$132,3,FALSE) -> 20251319
A57: 55 | B57: 配电网类 | C57: 朱丕洪 | D57: 男 | E57: =VLOOKUP(C57,[1]考生详表!$A$2:$AA$132,3,FALSE) -> 20250520
A58: 56 | B58: 配电网类 | C58: 沙长寿 | D58: 男 | E58: =VLOOKUP(C58,[1]考生详表!$A$2:$AA$132,3,FALSE) -> 20250409
A59: 57 | B59: 配电网类 | C59: 谭小金 | D59: 男 | E59: =VLOOKUP(C59,[1]考生详表!$A$2:$AA$132,3,FALSE) -> 20250726
A60: 58 | B60: 配电网类 | C60: 刘瑞虎 | D60: 男 | E60: =VLOOKUP(C60,[1]考生详表!$A$2:$AA$132,3,FALSE) -> 20250422
A61: 59 | B61: 配电网类 | C61: 刘志平 | D61: 男 | E61: =VLOOKUP(C61,[1]考生详表!$A$2:$AA$132,3,FALSE) -> 20251818
A62: 60 | B62: 配电网类 | C62: 张永金 | D62: 男 | E62: =VLOOKUP(C62,[1]考生详表!$A$2:$AA$132,3,FALSE) -> 20250108
A63: 61 | B63: 配电网类 | C63: 郜钰基 | D63: 男 | E63: =VLOOKUP(C63,[1]考生详表!$A$2:$AA$132,3,FALSE) -> 20250218
A64: 62 | B64: 配电网类 | C64: 张睿 | D64: 男 | E64: =VLOOKUP(C64,[1]考生详表!$A$2:$AA$132,3,FALSE) -> 20250616
A65: 63 | B65: 配电网类 | C65: 苏建泽 | D65: 男 | E65: =VLOOKUP(C65,[1]考生详表!$A$2:$AA$132,3,FALSE) -> 20251121
A66: 64 | B66: 配电网类 | C66: 罗鹏超 | D66: 男 | E66: =VLOOKUP(C66,[1]考生详表!$A$2:$AA$132,3,FALSE) -> 20250223
A67: 65 | B67: 配电网类 | C67: 高琦林 | D67: 男 | E67: =VLOOKUP(C67,[1]考生详表!$A$2:$AA$132,3,FALSE) -> 20250811
